[Event "*** Qualifier 1: Titled Tuesday 3|2 Blitz"]
[Site "Chess.com"]
[Date "2017.04.04"]
[Round "3"]
[White "rithwik2002"]
[Black "Osensei"]
[Result "1-0"]
[WhiteElo "1806"]
[BlackElo "1160"]
[TimeControl "180+2"]
[EndTime "13:38:37 PDT"]
[Termination "rithwik2002 won on time"]

1. d4 {[%clk 0:02:50.2]} 1... Nf6 {[%clk 0:02:59.3]} 2. Bf4 {[%clk 0:02:45.5]}
2... d6 {[%clk 0:02:59.6]} 3. Nc3 {[%clk 0:02:45.4]} 3... g6 {[%clk 0:03:00.1]}
4. e4 {[%clk 0:02:45.9]} 4... Bg7 {[%clk 0:02:59.2]} 5. Qd2 {[%clk 0:02:47.5]}
5... O-O {[%clk 0:02:59.4]} 6. O-O-O {[%clk 0:02:47.9]} 6... c6 {[%clk
0:03:00.2]} 7. Bh6 {[%clk 0:02:30.2]} 7... b5 {[%clk 0:02:57.3]} 8. f3 {[%clk
0:02:11.4]} 8... a5 {[%clk 0:02:39.4]} 9. h4 {[%clk 0:02:09.7]} 9... Re8 {[%clk
0:02:07]} 10. h5 {[%clk 0:02:06.3]} 10... Bh8 {[%clk 0:02:01.8]} 11. g4 {[%clk
0:01:53.6]} 11... a4 {[%clk 0:01:58.4]} 12. hxg6 {[%clk 0:01:41.7]} 12... hxg6
{[%clk 0:01:38.7]} 13. Bg5 {[%clk 0:01:21]} 13... Bg7 {[%clk 0:01:17.9]} 14. Bh6
{[%clk 0:01:08.3]} 14... Bh8 {[%clk 0:01:17.3]} 15. Qh2 {[%clk 0:00:51.8]} 15...
Bxg4 {[%clk 0:00:48.3]} 16. fxg4 {[%clk 0:00:19.3]} 16... Nxg4 {[%clk
0:00:48.7]} 17. Qh4 {[%clk 0:00:20.4]} 17... Nxh6 {[%clk 0:00:46.4]} 18. Qxh6
{[%clk 0:00:21.4]} 18... Bg7 {[%clk 0:00:47.8]} 19. Qh7+ {[%clk 0:00:22.2]}
19... Kf8 {[%clk 0:00:49.3]} 20. Bh3 {[%clk 0:00:16]} 20... b4 {[%clk 0:00:43]}
21. Rf1 {[%clk 0:00:11.9]} 21... e5 {[%clk 0:00:42.1]} 22. Nce2 {[%clk
0:00:06.9]} 22... Qg5+ {[%clk 0:00:41.5]} 23. Kb1 {[%clk 0:00:06.7]} 23... a3
{[%clk 0:00:36.8]} 24. Nf3 {[%clk 0:00:07.3]} 24... Qe3 {[%clk 0:00:34]} 25. Be6
{[%clk 0:00:05.5]} 25... Rxe6 {[%clk 0:00:32.9]} 26. dxe5 {[%clk 0:00:06.1]}
26... dxe5 {[%clk 0:00:31.3]} 27. Ng3 {[%clk 0:00:05.5]} 27... axb2 {[%clk
0:00:29.7]} 28. Nf5 {[%clk 0:00:03.8]} 28... gxf5 {[%clk 0:00:27.9]} 29. Rfg1
{[%clk 0:00:03.2]} 29... Rg6 {[%clk 0:00:26.3]} 30. Rxg6 {[%clk 0:00:03.1]}
30... fxg6 {[%clk 0:00:26.2]} 31. Qxg6 {[%clk 0:00:03.7]} 31... Ra7 {[%clk
0:00:20]} 32. Ng5 {[%clk 0:00:03.3]} 32... Re7 {[%clk 0:00:17.1]} 33. Ne6+
{[%clk 0:00:04.2]} 33... Rxe6 {[%clk 0:00:17.4]} 34. Qxe6 {[%clk 0:00:05.7]}
34... Qf3 {[%clk 0:00:15.7]} 35. Qd6+ {[%clk 0:00:06.5]} 35... Kf7 {[%clk
0:00:16.4]} 36. Qc7+ {[%clk 0:00:07]} 36... Ke6 {[%clk 0:00:15.5]} 37. Qc8+
{[%clk 0:00:05]} 37... Kd6 {[%clk 0:00:15.5]} 38. Qd8+ {[%clk 0:00:05.5]} 38...
Kc5 {[%clk 0:00:15.7]} 39. Qe7+ {[%clk 0:00:05.5]} 39... Kd4 {[%clk 0:00:15.6]}
40. Qxb4+ {[%clk 0:00:06.2]} 40... Ke3 {[%clk 0:00:15.8]} 41. Re1+ {[%clk
0:00:06.5]} 41... Kf4 {[%clk 0:00:16.2]} 42. Qd2+ {[%clk 0:00:07.3]} 42... Kg4
{[%clk 0:00:14.7]} 43. Rg1+ {[%clk 0:00:08.3]} 43... Kh3 {[%clk 0:00:13.5]} 44.
Qg5 {[%clk 0:00:07.4]} 1-0

[Event "*** Qualifier 1: Titled Tuesday 3|2 Blitz"]
[Site "Chess.com"]
[Date "2017.04.04"]
[Round "3"]
[White "Indianlad"]
[Black "nonscitis"]
[Result "1-0"]
[WhiteElo "2558"]
[BlackElo "2355"]
[TimeControl "180+2"]
[EndTime "13:38:42 PDT"]
[Termination "Indianlad won by resignation"]

1. e4 {[%clk 0:02:51.9]} 1... c5 {[%clk 0:02:57.5]} 2. Nf3 {[%clk 0:02:52.7]}
2... d6 {[%clk 0:02:57]} 3. d4 {[%clk 0:02:51.8]} 3... cxd4 {[%clk 0:02:57.4]}
4. Nxd4 {[%clk 0:02:53.7]} 4... Nf6 {[%clk 0:02:57.8]} 5. Nc3 {[%clk 0:02:52.2]}
5... a6 {[%clk 0:02:57.9]} 6. Bc4 {[%clk 0:02:53]} 6... g6 {[%clk 0:02:53.6]} 7.
Bb3 {[%clk 0:02:54.5]} 7... Bg7 {[%clk 0:02:53.9]} 8. f3 {[%clk 0:02:55.5]} 8...
Nc6 {[%clk 0:02:52.5]} 9. Be3 {[%clk 0:02:56.8]} 9... Nxd4 {[%clk 0:02:52.3]}
10. Bxd4 {[%clk 0:02:56.3]} 10... Be6 {[%clk 0:02:53.8]} 11. Qd2 {[%clk
0:02:54.2]} 11... O-O {[%clk 0:02:53.6]} 12. g4 {[%clk 0:02:51.9]} 12... Rc8
{[%clk 0:02:41]} 13. O-O-O {[%clk 0:02:42.7]} 13... Bxb3 {[%clk 0:02:38.9]} 14.
axb3 {[%clk 0:02:35.5]} 14... Qa5 {[%clk 0:02:22.3]} 15. Kb1 {[%clk 0:02:36.1]}
15... Rfe8 {[%clk 0:02:22.1]} 16. Bxf6 {[%clk 0:02:33.9]} 16... Bxf6 {[%clk
0:02:17.9]} 17. Nd5 {[%clk 0:02:34.7]} 17... Qc5 {[%clk 0:02:10.9]} 18. Nxf6+
{[%clk 0:02:31.1]} 18... exf6 {[%clk 0:02:11.2]} 19. c3 {[%clk 0:02:22]} 19...
Qb5 {[%clk 0:02:02.9]} 20. b4 {[%clk 0:00:42.5]} 20... a5 {[%clk 0:01:54]} 21.
Qd5 {[%clk 0:00:43.1]} 21... Qe2 {[%clk 0:01:54.6]} 22. Qd3 {[%clk 0:00:42.4]}
22... Qf2 {[%clk 0:01:28]} 23. bxa5 {[%clk 0:00:40.8]} 23... Rc5 {[%clk
0:01:27.4]} 24. Rd2 {[%clk 0:00:42.1]} 24... Qh4 {[%clk 0:01:24.6]} 25. b4
{[%clk 0:00:43.5]} 25... Rc6 {[%clk 0:01:24.6]} 26. Rc1 {[%clk 0:00:44.8]} 26...
Rec8 {[%clk 0:01:24.6]} 27. Kb2 {[%clk 0:00:45.6]} 27... Qg5 {[%clk 0:01:19]}
28. c4 {[%clk 0:00:41.3]} 28... Kg7 {[%clk 0:00:51.7]} 29. Rdc2 {[%clk
0:00:40.9]} 29... Qe5+ {[%clk 0:00:49.8]} 30. Kb3 {[%clk 0:00:41.9]} 30... b6
{[%clk 0:00:48.7]} 31. a6 {[%clk 0:00:40.2]} 31... R6c7 {[%clk 0:00:38.8]} 32.
Qd5 {[%clk 0:00:39.2]} 32... Qf4 {[%clk 0:00:36.3]} 33. Rc3 {[%clk 0:00:40.3]}
33... Qxh2 {[%clk 0:00:33.3]} 34. Qd4 {[%clk 0:00:41]} 34... Rb8 {[%clk
0:00:28.3]} 35. g5 {[%clk 0:00:41.5]} 35... Kg8 {[%clk 0:00:23.3]} 36. gxf6
{[%clk 0:00:41.6]} 36... Ra7 {[%clk 0:00:20.6]} 37. b5 {[%clk 0:00:40.5]} 37...
Rc7 {[%clk 0:00:21.3]} 38. Rd1 {[%clk 0:00:40.4]} 38... Rd7 {[%clk 0:00:15.8]}
39. Rc2 {[%clk 0:00:39.3]} 39... Qf4 {[%clk 0:00:15.5]} 40. Rd3 {[%clk 0:00:38]}
40... h5 {[%clk 0:00:15.5]} 41. e5 {[%clk 0:00:37.2]} 41... h4 {[%clk
0:00:10.5]} 42. Qxf4 {[%clk 0:00:36.9]} 1-0

[Event "*** Qualifier 1: Titled Tuesday 3|2 Blitz"]
[Site "Chess.com"]
[Date "2017.04.04"]
[Round "3"]
[White "Astaneh"]
[Black "GamayevOleg"]
[Result "0-1"]
[WhiteElo "2505"]
[BlackElo "2405"]
[TimeControl "180+2"]
[EndTime "13:38:51 PDT"]
[Termination "GamayevOleg won by resignation"]

1. d4 {[%clk 0:03:02]} 1... e6 {[%clk 0:03:00.4]} 2. c4 {[%clk 0:03:01.1]} 2...
f5 {[%clk 0:03:01.2]} 3. Nc3 {[%clk 0:02:55.1]} 3... Nf6 {[%clk 0:03:01.6]} 4.
g3 {[%clk 0:02:49.3]} 4... Be7 {[%clk 0:03:01.2]} 5. Bg2 {[%clk 0:02:50.7]} 5...
O-O {[%clk 0:03:01.1]} 6. Nh3 {[%clk 0:02:52.4]} 6... Qe8 {[%clk 0:02:40.3]} 7.
O-O {[%clk 0:02:48.9]} 7... d6 {[%clk 0:02:40]} 8. Re1 {[%clk 0:02:47.5]} 8...
e5 {[%clk 0:02:27.1]} 9. Nb5 {[%clk 0:02:42.3]} 9... Na6 {[%clk 0:02:19.6]} 10.
Ng5 {[%clk 0:02:40]} 10... h6 {[%clk 0:02:06.8]} 11. Nf3 {[%clk 0:02:27.7]}
11... e4 {[%clk 0:02:05.2]} 12. Nd2 {[%clk 0:02:28]} 12... c6 {[%clk 0:02:05.7]}
13. Nc3 {[%clk 0:02:29.2]} 13... Nc7 {[%clk 0:02:06.1]} 14. f3 {[%clk
0:02:30.8]} 14... d5 {[%clk 0:02:05.4]} 15. Qb3 {[%clk 0:02:30.9]} 15... Kh8
{[%clk 0:01:42.1]} 16. cxd5 {[%clk 0:02:32.5]} 16... cxd5 {[%clk 0:01:41.6]} 17.
Nf1 {[%clk 0:02:34.1]} 17... a5 {[%clk 0:01:32.6]} 18. Bf4 {[%clk 0:02:35.5]}
18... a4 {[%clk 0:01:07.5]} 19. Nxa4 {[%clk 0:02:36]} 19... Qxa4 {[%clk
0:01:07.4]} 20. Qxa4 {[%clk 0:02:34.1]} 20... Rxa4 {[%clk 0:01:08.3]} 21. Bxc7
{[%clk 0:02:35.8]} 21... Rxd4 {[%clk 0:01:09.2]} 22. b3 {[%clk 0:02:32.8]} 22...
Ne8 {[%clk 0:00:59.6]} 23. Be5 {[%clk 0:02:32.8]} 23... Bf6 {[%clk 0:01:00]} 24.
Bxd4 {[%clk 0:02:25.3]} 24... Bxd4+ {[%clk 0:01:01]} 25. e3 {[%clk 0:02:27.2]}
25... Bxa1 {[%clk 0:01:02.2]} 26. Rxa1 {[%clk 0:02:29.1]} 26... Rf7 {[%clk
0:00:56.7]} 27. Rc1 {[%clk 0:02:13.1]} 27... Rc7 {[%clk 0:00:57.2]} 28. Rxc7
{[%clk 0:02:14.6]} 28... Nxc7 {[%clk 0:00:59]} 29. Kf2 {[%clk 0:02:16.5]} 29...
Kg8 {[%clk 0:00:47.4]} 30. Ke2 {[%clk 0:02:17.5]} 30... Kf7 {[%clk 0:00:48.9]}
31. Kd2 {[%clk 0:02:19.1]} 31... Ke6 {[%clk 0:00:48.5]} 32. Kc3 {[%clk
0:02:18.8]} 32... Kd6 {[%clk 0:00:50]} 33. a4 {[%clk 0:02:15.2]} 33... b6 {[%clk
0:00:50.7]} 34. Nd2 {[%clk 0:02:15.9]} 34... Ba6 {[%clk 0:00:51.1]} 35. b4
{[%clk 0:02:13.1]} 35... Be2 {[%clk 0:00:49.8]} 36. f4 {[%clk 0:02:06.5]} 36...
Ne6 {[%clk 0:00:46.4]} 37. Bf1 {[%clk 0:01:53]} 37... Bxf1 {[%clk 0:00:44.9]}
38. Nxf1 {[%clk 0:01:54.9]} 38... g5 {[%clk 0:00:46.5]} 39. Nd2 {[%clk
0:01:54.7]} 39... gxf4 {[%clk 0:00:38.6]} 40. gxf4 {[%clk 0:01:56]} 40... d4+
{[%clk 0:00:40]} 41. exd4 {[%clk 0:01:57.9]} 41... Nxf4 {[%clk 0:00:41.4]} 42.
Nc4+ {[%clk 0:01:58.8]} 42... Kc6 {[%clk 0:00:42.1]} 43. Ne3 {[%clk 0:02:00.7]}
43... Ne2+ {[%clk 0:00:35.8]} 44. Kc4 {[%clk 0:02:01.2]} 44... f4 {[%clk
0:00:37.3]} 45. d5+ {[%clk 0:01:53.3]} 45... Kc7 {[%clk 0:00:38.1]} 46. Nf5
{[%clk 0:01:42.3]} 46... f3 {[%clk 0:00:32.6]} 47. a5 {[%clk 0:01:34.3]} 47...
bxa5 {[%clk 0:00:31.3]} 48. bxa5 {[%clk 0:01:31.6]} 48... f2 {[%clk 0:00:28.9]}
49. Ne3 {[%clk 0:01:25.1]} 49... Nf4 {[%clk 0:00:29.2]} 50. Kd4 {[%clk
0:01:15.4]} 50... Kd6 {[%clk 0:00:25.6]} 51. Nf5+ {[%clk 0:00:28.1]} 51... Kd7
{[%clk 0:00:26]} 52. Ng3 {[%clk 0:00:30]} 52... Ne2+ {[%clk 0:00:27]} 53. Ke3
{[%clk 0:00:31.1]} 53... Nxg3 {[%clk 0:00:28.4]} 54. Kxf2 {[%clk 0:00:30.4]}
54... Nf5 {[%clk 0:00:29.9]} 55. a6 {[%clk 0:00:29.8]} 55... Kc7 {[%clk
0:00:31.3]} 56. d6+ {[%clk 0:00:23]} 56... Nxd6 {[%clk 0:00:31.4]} 57. Ke3
{[%clk 0:00:24.9]} 0-1

[Event "*** Qualifier 1: Titled Tuesday 3|2 Blitz"]
[Site "Chess.com"]
[Date "2017.04.04"]
[Round "3"]
[White "bancsoo"]
[Black "platy3"]
[Result "0-1"]
[WhiteElo "2614"]
[BlackElo "2624"]
[TimeControl "180+2"]
[EndTime "13:38:55 PDT"]
[Termination "platy3 won by resignation"]

1. Nf3 {[%clk 0:03:00.3]} 1... Nf6 {[%clk 0:02:58.7]} 2. g3 {[%clk 0:03:01.4]}
2... d5 {[%clk 0:02:54.6]} 3. Bg2 {[%clk 0:03:02.5]} 3... e6 {[%clk 0:02:56.1]}
4. O-O {[%clk 0:03:03.3]} 4... Be7 {[%clk 0:02:57.8]} 5. d4 {[%clk 0:03:03.7]}
5... O-O {[%clk 0:02:59.7]} 6. c4 {[%clk 0:03:04.8]} 6... dxc4 {[%clk
0:03:01.1]} 7. Qc2 {[%clk 0:03:03.6]} 7... a6 {[%clk 0:03:01.5]} 8. a4 {[%clk
0:03:04.6]} 8... Bd7 {[%clk 0:03:02.1]} 9. Rd1 {[%clk 0:03:04.1]} 9... Bc6
{[%clk 0:03:01.3]} 10. Nc3 {[%clk 0:03:05.2]} 10... a5 {[%clk 0:03:00.3]} 11. e4
{[%clk 0:03:02.4]} 11... Na6 {[%clk 0:03:01.5]} 12. Ne5 {[%clk 0:03:03.6]} 12...
Nb4 {[%clk 0:02:53.2]} 13. Qe2 {[%clk 0:03:04.4]} 13... Nd7 {[%clk 0:02:46.1]}
14. Nxc4 {[%clk 0:02:55.9]} 14... Nf6 {[%clk 0:02:22.9]} 15. Bf4 {[%clk
0:02:47.9]} 15... b6 {[%clk 0:02:20]} 16. Rac1 {[%clk 0:02:22]} 16... Bb7 {[%clk
0:02:11.3]} 17. Nb5 {[%clk 0:02:15.8]} 17... Rc8 {[%clk 0:02:10.9]} 18. b3
{[%clk 0:02:13.7]} 18... Ba6 {[%clk 0:02:04.1]} 19. Qb2 {[%clk 0:02:00.1]} 19...
Ne8 {[%clk 0:01:47]} 20. Nc3 {[%clk 0:01:50.3]} 20... Nd6 {[%clk 0:01:44.6]} 21.
Ne5 {[%clk 0:01:49.4]} 21... Bg5 {[%clk 0:01:35.5]} 22. Bxg5 {[%clk 0:01:35.4]}
22... Qxg5 {[%clk 0:01:37.4]} 23. Bf1 {[%clk 0:01:28.4]} 23... Bb7 {[%clk
0:01:32.7]} 24. Bg2 {[%clk 0:01:18.2]} 24... Rfd8 {[%clk 0:01:32.7]} 25. Qd2
{[%clk 0:01:14.4]} 25... Qxd2 {[%clk 0:01:18.8]} 26. Rxd2 {[%clk 0:01:16.3]}
26... f6 {[%clk 0:01:20.2]} 27. Nc4 {[%clk 0:01:17.4]} 27... Nxc4 {[%clk
0:01:16.3]} 28. bxc4 {[%clk 0:01:18.6]} 28... e5 {[%clk 0:01:17.6]} 29. d5
{[%clk 0:01:17.6]} 29... Na6 {[%clk 0:01:19]} 30. Bh3 {[%clk 0:01:15]} 30... Rb8
{[%clk 0:01:17]} 31. Nb5 {[%clk 0:01:16.1]} 31... Bc8 {[%clk 0:01:04.8]} 32.
Bxc8 {[%clk 0:01:10]} 32... Rbxc8 {[%clk 0:01:05.7]} 33. Nc3 {[%clk 0:00:54.8]}
33... Nc5 {[%clk 0:01:04.4]} 34. f4 {[%clk 0:00:56.3]} 34... Nb3 {[%clk
0:01:05.2]} 35. Rdc2 {[%clk 0:00:56.5]} 35... Nxc1 {[%clk 0:01:06.3]} 36. Rxc1
{[%clk 0:00:58.1]} 36... Kf7 {[%clk 0:01:04.7]} 37. fxe5 {[%clk 0:00:57.7]}
37... fxe5 {[%clk 0:01:05.3]} 38. Nb5 {[%clk 0:00:59.3]} 38... g6 {[%clk
0:00:45]} 39. c5 {[%clk 0:01:00.3]} 39... bxc5 {[%clk 0:00:25.5]} 40. Rxc5
{[%clk 0:01:02.2]} 40... Rd7 {[%clk 0:00:26.3]} 41. Kf2 {[%clk 0:01:01.6]} 41...
Ke7 {[%clk 0:00:25.4]} 42. Ke3 {[%clk 0:01:02.6]} 42... Rb8 {[%clk 0:00:17.9]}
43. Kd3 {[%clk 0:01:01.4]} 43... Rb7 {[%clk 0:00:17.6]} 44. Kc4 {[%clk
0:01:01.9]} 44... Rb6 {[%clk 0:00:17.5]} 45. Kc3 {[%clk 0:01:00.3]} 45... Kd8
{[%clk 0:00:18.7]} 46. Na7 {[%clk 0:00:59.9]} 46... Rb1 {[%clk 0:00:11.8]} 47.
Nc6+ {[%clk 0:01:00.9]} 47... Ke8 {[%clk 0:00:11.2]} 48. Rxa5 {[%clk 0:01:02.1]}
48... Rd6 {[%clk 0:00:06.9]} 49. Ra8+ {[%clk 0:01:01.2]} 49... Kf7 {[%clk
0:00:08.1]} 50. Nxe5+ {[%clk 0:01:02.6]} 50... Kg7 {[%clk 0:00:09.6]} 51. Nc4
{[%clk 0:01:02.6]} 51... Rf6 {[%clk 0:00:10.3]} 52. Ra7 {[%clk 0:01:03.6]} 52...
Rf3+ {[%clk 0:00:11.1]} 53. Kd4 {[%clk 0:01:03.2]} 53... Rf7 {[%clk 0:00:12.3]}
54. a5 {[%clk 0:01:03.3]} 54... c5+ {[%clk 0:00:13.6]} 55. Kxc5 {[%clk
0:00:59.1]} 55... Rxa7 {[%clk 0:00:15.5]} 56. e5 {[%clk 0:01:00.8]} 56... Rc1
{[%clk 0:00:16]} 57. d6 {[%clk 0:00:57.5]} 57... Rxa5+ {[%clk 0:00:16.3]} 0-1

[Event "*** Qualifier 1: Titled Tuesday 3|2 Blitz"]
[Site "Chess.com"]
[Date "2017.04.04"]
[Round "3"]
[White "sergiochess83"]
[Black "Ginger_GM"]
[Result "1-0"]
[WhiteElo "2672"]
[BlackElo "2478"]
[TimeControl "180+2"]
[EndTime "13:39:00 PDT"]
[Termination "sergiochess83 won by resignation"]

1. e4 {[%clk 0:03:02]} 1... e6 {[%clk 0:02:57.8]} 2. d4 {[%clk 0:03:02.3]} 2...
d5 {[%clk 0:02:58.4]} 3. Nd2 {[%clk 0:03:04.2]} 3... Nf6 {[%clk 0:02:58.4]} 4.
e5 {[%clk 0:03:04.1]} 4... Nfd7 {[%clk 0:02:59.4]} 5. Bd3 {[%clk 0:03:05.2]}
5... c5 {[%clk 0:02:59.9]} 6. c3 {[%clk 0:03:06.7]} 6... Nc6 {[%clk 0:03:00.7]}
7. Ndf3 {[%clk 0:03:08]} 7... Qa5 {[%clk 0:02:57.1]} 8. Kf1 {[%clk 0:03:02.3]}
8... b6 {[%clk 0:02:47.2]} 9. Ne2 {[%clk 0:02:52.5]} 9... Ba6 {[%clk 0:02:47.6]}
10. h4 {[%clk 0:02:53.5]} 10... Rc8 {[%clk 0:02:41.2]} 11. a3 {[%clk 0:02:33.4]}
11... Bxd3 {[%clk 0:02:34.3]} 12. Qxd3 {[%clk 0:02:34.4]} 12... cxd4 {[%clk
0:02:29.8]} 13. cxd4 {[%clk 0:02:34.8]} 13... Nb4 {[%clk 0:02:08.5]} 14. Qb3
{[%clk 0:02:35.4]} 14... Nc2 {[%clk 0:02:00.5]} 15. Rb1 {[%clk 0:02:36.5]} 15...
Qa6 {[%clk 0:01:41.4]} 16. Bd2 {[%clk 0:02:27.8]} 16... Qc4 {[%clk 0:01:15.7]}
17. Qxc4 {[%clk 0:02:24.5]} 17... Rxc4 {[%clk 0:01:15.8]} 18. Bc3 {[%clk
0:02:15.4]} 18... b5 {[%clk 0:01:13.3]} 19. Rc1 {[%clk 0:02:12.2]} 19... Nxa3
{[%clk 0:01:10.5]} 20. bxa3 {[%clk 0:02:12.3]} 20... Bxa3 {[%clk 0:01:11.3]} 21.
Rb1 {[%clk 0:02:08]} 21... b4 {[%clk 0:01:10.2]} 22. Bb2 {[%clk 0:01:57.8]}
22... Bxb2 {[%clk 0:00:58.7]} 23. Rxb2 {[%clk 0:01:59.7]} 23... Ke7 {[%clk
0:00:59.9]} 24. Nd2 {[%clk 0:01:56.7]} 24... a5 {[%clk 0:01:00.2]} 25. Nxc4
{[%clk 0:01:48.4]} 25... dxc4 {[%clk 0:01:01]} 26. Rh3 {[%clk 0:01:44]} 26...
Nb6 {[%clk 0:00:58.9]} 27. Nc3 {[%clk 0:01:34.6]} 27... Nd5 {[%clk 0:00:48.5]}
28. Na4 {[%clk 0:01:08.1]} 28... c3 {[%clk 0:00:38.6]} 29. Rc2 {[%clk 0:00:59]}
29... Rc8 {[%clk 0:00:28.2]} 30. Ke2 {[%clk 0:00:21.2]} 30... Nf4+ {[%clk
0:00:26.9]} 31. Ke3 {[%clk 0:00:20.6]} 31... Nxh3 {[%clk 0:00:26.9]} 32. gxh3
{[%clk 0:00:22.5]} 32... f6 {[%clk 0:00:19.6]} 33. f4 {[%clk 0:00:20.5]} 33...
fxe5 {[%clk 0:00:20.5]} 34. fxe5 {[%clk 0:00:21.7]} 34... Kf7 {[%clk 0:00:21.6]}
35. Kd3 {[%clk 0:00:21.8]} 35... Kg6 {[%clk 0:00:22.6]} 36. Rg2+ {[%clk
0:00:22.7]} 36... Kh6 {[%clk 0:00:23.3]} 37. Nc5 {[%clk 0:00:22.7]} 37... Rc6
{[%clk 0:00:21.7]} 38. Kc4 {[%clk 0:00:19]} 38... Kh5 {[%clk 0:00:20.5]} 39. Kb3
{[%clk 0:00:17.3]} 39... g6 {[%clk 0:00:20.4]} 40. Rg4 {[%clk 0:00:16.3]} 40...
Kh6 {[%clk 0:00:16.5]} 41. Rg5 {[%clk 0:00:13.4]} 41... Kg7 {[%clk 0:00:17.2]}
42. h5 {[%clk 0:00:12.8]} 42... Kh6 {[%clk 0:00:17.7]} 43. h4 {[%clk 0:00:14.3]}
43... gxh5 {[%clk 0:00:16.5]} 44. Rg2 {[%clk 0:00:13.4]} 44... Rb6 {[%clk
0:00:14.5]} 45. Nd7 {[%clk 0:00:09.8]} 45... a4+ {[%clk 0:00:13.4]} 46. Kxa4
{[%clk 0:00:10.5]} 46... Rb7 {[%clk 0:00:13.7]} 47. Nf6 {[%clk 0:00:11.2]} 47...
Rb8 {[%clk 0:00:12.8]} 48. Kb3 {[%clk 0:00:10.6]} 48... Ra8 {[%clk 0:00:11.9]}
49. Ng8+ {[%clk 0:00:09.9]} 49... Rxg8 {[%clk 0:00:09.6]} 50. Rxg8 {[%clk
0:00:11.8]} 50... c2 {[%clk 0:00:10.4]} 51. Rg1 {[%clk 0:00:12.8]} 51... c1=Q
{[%clk 0:00:10.1]} 52. Rxc1 {[%clk 0:00:14.7]} 1-0

[Event "*** Qualifier 1: Titled Tuesday 3|2 Blitz"]
[Site "Chess.com"]
[Date "2017.04.04"]
[Round "3"]
[White "kleinebeer98"]
[Black "GianmarcoVaR"]
[Result "1-0"]
[WhiteElo "2474"]
[BlackElo "2415"]
[TimeControl "180+2"]
[EndTime "13:39:00 PDT"]
[Termination "kleinebeer98 won by resignation"]

1. e4 {[%clk 0:03:02]} 1... c6 {[%clk 0:02:52.6]} 2. d4 {[%clk 0:03:02.5]} 2...
d5 {[%clk 0:02:53.7]} 3. f3 {[%clk 0:03:04.2]} 3... g6 {[%clk 0:02:48.9]} 4. Nc3
{[%clk 0:03:03]} 4... Bg7 {[%clk 0:02:49.7]} 5. Be3 {[%clk 0:03:04]} 5... dxe4
{[%clk 0:02:43.1]} 6. fxe4 {[%clk 0:03:05.9]} 6... Nf6 {[%clk 0:02:44.3]} 7. Nf3
{[%clk 0:03:01.7]} 7... O-O {[%clk 0:02:42.3]} 8. h3 {[%clk 0:02:57.9]} 8...
Nbd7 {[%clk 0:02:31.1]} 9. Qd2 {[%clk 0:02:56.8]} 9... e5 {[%clk 0:02:30.5]} 10.
dxe5 {[%clk 0:02:52.9]} 10... Nh5 {[%clk 0:02:31.5]} 11. e6 {[%clk 0:02:48.6]}
11... fxe6 {[%clk 0:02:22.2]} 12. Bc4 {[%clk 0:02:49.8]} 12... Nb6 {[%clk
0:02:19.4]} 13. Qxd8 {[%clk 0:02:44]} 13... Rxd8 {[%clk 0:02:19.6]} 14. Bb3
{[%clk 0:02:44.2]} 14... Ng3 {[%clk 0:02:19.5]} 15. Rg1 {[%clk 0:02:38.6]} 15...
Bxc3+ {[%clk 0:02:18.9]} 16. bxc3 {[%clk 0:02:40.5]} 16... Nxe4 {[%clk
0:02:20.6]} 17. Ng5 {[%clk 0:02:26.2]} 17... Nxc3 {[%clk 0:02:14]} 18. Rf1
{[%clk 0:01:59.8]} 18... Nbd5 {[%clk 0:01:57.9]} 19. Bd4 {[%clk 0:01:55.7]}
19... b5 {[%clk 0:01:48]} 20. Nf7 {[%clk 0:01:45.9]} 20... e5 {[%clk 0:01:41.2]}
21. Bxc3 {[%clk 0:01:44.5]} 21... Re8 {[%clk 0:01:19.6]} 22. Nd6 {[%clk
0:01:36.3]} 22... Re6 {[%clk 0:01:20.9]} 23. Nxc8 {[%clk 0:01:33.6]} 23... Rxc8
{[%clk 0:01:22.5]} 24. O-O-O {[%clk 0:01:35]} 24... Kg7 {[%clk 0:01:17.7]} 25.
Bb2 {[%clk 0:01:28.3]} 25... Rd8 {[%clk 0:01:04.7]} 26. Rde1 {[%clk 0:01:22]}
26... Rde8 {[%clk 0:01:04.2]} 27. Rd1 {[%clk 0:01:16]} 27... Rd6 {[%clk
0:01:05.4]} 28. Rfe1 {[%clk 0:01:13.8]} 28... Kf6 {[%clk 0:01:03.2]} 29. Rd2
{[%clk 0:01:14]} 29... h5 {[%clk 0:00:25.2]} 30. Rf2+ {[%clk 0:01:13.3]} 30...
Kg5 {[%clk 0:00:23.3]} 31. Bxe5 {[%clk 0:01:05.3]} 31... Rde6 {[%clk 0:00:23.5]}
32. Bxd5 {[%clk 0:01:05.4]} 32... Rxe5 {[%clk 0:00:19.5]} 33. Rxe5+ {[%clk
0:01:04.8]} 33... Rxe5 {[%clk 0:00:20.7]} 34. Bxc6 {[%clk 0:01:06.4]} 34... a6
{[%clk 0:00:20.7]} 35. Kb2 {[%clk 0:01:05]} 35... Kh4 {[%clk 0:00:21.1]} 36. Rd2
{[%clk 0:00:56.8]} 36... Re6 {[%clk 0:00:20.4]} 37. Bf3 {[%clk 0:00:54]} 37...
Kg3 {[%clk 0:00:19]} 38. Rd5 {[%clk 0:00:54.6]} 38... Rf6 {[%clk 0:00:13.3]} 39.
a4 {[%clk 0:00:52.7]} 39... bxa4 {[%clk 0:00:13.1]} 40. c4 {[%clk 0:00:53.7]}
40... Rb6+ {[%clk 0:00:07.3]} 41. Ka3 {[%clk 0:00:54.8]} 41... a5 {[%clk
0:00:07.1]} 42. c5 {[%clk 0:00:54]} 42... Rb4 {[%clk 0:00:05.5]} 43. c6 {[%clk
0:00:50.4]} 43... Rc4 {[%clk 0:00:06.2]} 44. Rxa5 {[%clk 0:00:51.9]} 44... g5
{[%clk 0:00:07.5]} 45. Rxg5+ {[%clk 0:00:52.4]} 45... Kh2 {[%clk 0:00:07.7]} 46.
Rxh5 {[%clk 0:00:53.6]} 46... Kg3 {[%clk 0:00:08.5]} 47. Rd5 {[%clk 0:00:52.1]}
47... Kh4 {[%clk 0:00:08.8]} 48. Ra5 {[%clk 0:00:41.4]} 48... Rc3+ {[%clk
0:00:06.7]} 49. Kb4 {[%clk 0:00:42.4]} 49... Rc1 {[%clk 0:00:05.9]} 50. Rc5
{[%clk 0:00:42.6]} 50... Rb1+ {[%clk 0:00:05.8]} 51. Kxa4 {[%clk 0:00:43.4]}
51... Rb8 {[%clk 0:00:05.5]} 52. c7 {[%clk 0:00:44.3]} 52... Rc8 {[%clk
0:00:05.9]} 53. Bg4 {[%clk 0:00:45.6]} 53... Ra8+ {[%clk 0:00:05.8]} 54. Kb5
{[%clk 0:00:46.3]} 54... Ra3 {[%clk 0:00:02.7]} 55. c8=Q {[%clk 0:00:45]} 55...
Rb3+ {[%clk 0:00:03.3]} 56. Kc4 {[%clk 0:00:45.6]} 56... Rb8 {[%clk 0:00:04.3]}
57. Rh5+ {[%clk 0:00:44]} 57... Kg3 {[%clk 0:00:05.1]} 58. Qxb8+ {[%clk
0:00:45.9]} 1-0